fUST/lending_fUST_20250217
["ID","MTS","AMOUNT","RATE_DAILY","PERIOD"]
[353271902,1739733044467,-517.91,8.219e-05,2]
[353271903,1739733044477,-500.0,8.219e-05,2]
[353271904,1739733044487,-500.0,8.219e-05,2]
[353271905,1739733044497,-500.0,8.219e-05,2]
[353271906,1739733044506,-500.0,8.219e-05,2]
[353271907,1739733044515,-500.0,8.219e-05,2]
[353271908,1739733044524,-500.0,8.219e-05,2]
[353271909,1739733044534,-500.0,8.219e-05,2]
[353271910,1739733044543,-500.0,8.219e-05,2]
[353271911,1739733044552,-500.0,8.219e-05,2]
[353271912,1739733044561,-615.90051758,8.219e-05,2]
[353271913,1739733044571,-500.0,8.219e-05,2]
[353271914,1739733044579,-411.9993984,8.219e-05,2]
[353271915,1739733044589,-665.11,8.219e-05,2]
[353271916,1739733044598,-500.0,8.219e-05,2]
[353271917,1739733044607,-500.0,8.219e-05,2]
[353271918,1739733044617,-503.60289075,8.219e-05,2]
[353271919,1739733044626,-657.75,8.219e-05,2]
[353271920,1739733044635,-500.0,8.219e-05,2]
[353271921,1739733044645,-500.0,8.219e-05,2]
[353271922,1739733044654,-500.0,8.219e-05,2]
[353271923,1739733044663,-500.0,8.219e-05,2]
[353271924,1739733044673,-500.0,8.219e-05,2]
[353271925,1739733044683,-504.9395046,8.219e-05,2]
[353271926,1739733044692,-500.0,8.219e-05,2]
[353271927,1739733044702,-385.39539745,8.219e-05,2]
[353271928,1739733044711,-500.0,8.219e-05,2]
[353271929,1739733044721,-1060.72,8.219e-05,2]
[353271930,1739733044730,-500.0,8.219e-05,2]
[353271931,1739733044740,-500.0,8.219e-05,2]
[353271932,1739733044750,-500.0,8.219e-05,2]
[353271933,1739733044759,-613.58,8.219e-05,2]
[353271934,1739733044768,-500.0,8.219e-05,2]
[353271935,1739733044777,-515.97,8.219e-05,2]
[353271936,1739733044786,-500.0,8.219e-05,2]
[353271937,1739733044796,-500.0,8.219e-05,2]
[353271938,1739733044805,-314.62845176,8.219e-05,2]
[353271939,1739733044814,-500.0,8.219e-05,2]
[353271940,1739733044824,-500.0,8.219e-05,2]
[353271941,1739733044833,-500.0,8.219e-05,2]
[353271942,1739733044842,-500.0,8.219e-05,2]
[353271943,1739733044852,-500.0,8.219e-05,2]
[353271944,1739733044862,-500.0,8.219e-05,2]
[353271945,1739733044871,-699.6,8.219e-05,2]
[353271946,1739733044880,-876.51,8.219e-05,2]
[353271947,1739733044890,-1483.37,8.219e-05,2]
[353271948,1739733044899,-24243.02,8.219e-05,2]
[353271949,1739733044910,-500.0,8.219e-05,2]
[353271950,1739733044920,-760.68,8.219e-05,2]
[353271951,1739733044931,-1122.57,8.219e-05,2]
[353271952,1739733044940,-2544.33,8.219e-05,2]
[353271953,1739733044950,-702.92,8.219e-05,2]
[353271954,1739733044964,-4575.58,8.219e-05,2]
[353271955,1739733044973,-579.63,8.219e-05,2]
[353271956,1739733044984,-657.42,8.219e-05,2]
[353271957,1739733044993,-500.0,8.219e-05,2]
[353271958,1739733045003,-500.0,8.219e-05,2]
[353271959,1739733045012,-500.0,8.219e-05,2]
[353271960,1739733045022,-500.0,8.219e-05,2]
[353271961,1739733045035,-449.8350466,8.219e-05,2]
[353271962,1739733045044,-2085.29,8.219e-05,2]
[353271963,1739733045158,-1091.36,8.219e-05,2]
[353271964,1739733045168,-591.81,8.219e-05,2]
[353271965,1739733045178,-500.0,8.219e-05,2]
[353271966,1739733045187,-508.04805035,8.219e-05,2]
[353271967,1739733045197,-729.94,8.219e-05,2]
[353271968,1739733045206,-500.0,8.219e-05,2]
[353271969,1739733045215,-500.0,8.219e-05,2]
[353271970,1739733045225,-1387.47,8.219e-05,2]
[353271971,1739733045234,-2021.25,8.219e-05,2]
[353271972,1739733045243,-500.0,8.219e-05,2]
[353271973,1739733045254,-500.0,8.219e-05,2]
[353271974,1739733045264,-659.34,8.219e-05,2]
[353271975,1739733045274,-1469.94,8.219e-05,2]
[353271976,1739733045284,-981.07,8.219e-05,2]
[353271977,1739733045294,-500.0,8.219e-05,2]
[353271978,1739733045303,-490.86971665,8.219e-05,2]
[353271979,1739733045312,-500.0,8.219e-05,2]
[353271980,1739733045322,-500.0,8.219e-05,2]
[353271981,1739733045331,-1248.94,8.219e-05,2]
[353271982,1739733045341,-252.73549147,8.219e-05,2]
[353271983,1739733045353,-500.0,8.219e-05,2]
[353271984,1739733045363,-500.0,8.219e-05,2]
[353271985,1739733045373,-500.0,8.219e-05,2]
[353271986,1739733045382,-501.21800841,8.219e-05,2]
[353271987,1739733045392,-500.0,8.219e-05,2]
[353271988,1739733045402,-11079.13,8.219e-05,2]
[353271989,1739733045412,-529.64215336,8.219e-05,2]
[353271990,1739733045422,-500.0,8.219e-05,2]
[353271991,1739733045433,-500.0,8.219e-05,2]
[353271992,1739733045443,-909.52,8.219e-05,2]
[353271993,1739733045452,-500.0,8.219e-05,2]
[353271994,1739733045462,-500.0,8.219e-05,2]
[353271995,1739733045472,-3038.02,8.219e-05,2]
[353271996,1739733045482,-1125.48,8.219e-05,2]
[353271997,1739733045492,-500.0,8.219e-05,2]
[353271998,1739733045502,-500.0,8.219e-05,2]
[353271999,1739733045512,-500.0,8.219e-05,2]
[353272000,1739733045522,-500.0,8.219e-05,2]
[353272001,1739733045533,-500.0,8.219e-05,2]
[353272002,1739733045542,-500.0,8.219e-05,2]
[353272003,1739733045552,-500.0,8.219e-05,2]
[353272004,1739733045561,-3918.87,8.219e-05,2]
[353272005,1739733045571,-2219.97,8.219e-05,2]
[353272006,1739733045580,-1247.21,8.219e-05,2]
[353272007,1739733045590,-500.0,8.219e-05,2]
[353272008,1739733045599,-2054.68,8.219e-05,2]
[353272009,1739733045609,-1640.14,8.219e-05,2]
[353272010,1739733045619,-500.0,8.219e-05,2]
[353272011,1739733045628,-10798.56,8.219e-05,2]
[353272012,1739733045638,-823.15,8.219e-05,2]
[353272013,1739733045647,-857.07,8.219e-05,2]
[353272014,1739733045657,-500.0,8.219e-05,2]
[353272015,1739733045666,-500.0,8.219e-05,2]
[353272016,1739733045676,-1700.0,8.22e-05,2]
[353272018,1739733045686,-1018.334565,8.299e-05,2]
[353272019,1739733045696,-500.0,8.3e-05,2]
[353272020,1739733045705,-558.34917572,8.3e-05,2]
[353272021,1739733045715,-151.0,8.301e-05,2]
[353272022,1739733045725,-151.0,8.301e-05,2]
[353272023,1739733045735,-500.0,8.301e-05,2]
[353272024,1739733045744,-500.0,8.301e-05,2]
[353272025,1739733045754,-500.0,8.301e-05,2]
[353272027,1739733045764,-500.0,8.301e-05,2]
[353272029,1739733045775,-500.0,8.301e-05,2]
[353272030,1739733045785,-500.0,8.301e-05,2]
[353272031,1739733045794,-500.0,8.301e-05,2]
[353272032,1739733045804,-500.0,8.301e-05,2]
[353272033,1739733045814,-1988.86,8.301e-05,2]
[353272034,1739733045824,-500.0,8.301e-05,2]
[353272035,1739733045834,-504.9,8.301e-05,2]
[353272036,1739733045844,-500.0,8.301e-05,2]
[353272037,1739733045854,-500.0,8.301e-05,2]
[353272038,1739733045865,-517.91,8.301e-05,2]
[353272039,1739733045876,-500.0,8.301e-05,2]
[353272040,1739733045886,-500.0,8.301e-05,2]
[353272041,1739733045895,-500.0,8.301e-05,2]
[353272043,1739733045905,-500.0,8.301e-05,2]
[353272044,1739733045915,-665.11,8.301e-05,2]
[353272045,1739733045924,-657.75,8.301e-05,2]
[353272046,1739733045933,-500.0,8.301e-05,2]
[353272047,1739733045943,-500.0,8.301e-05,2]
[353272049,1739733045955,-1060.72,8.301e-05,2]
[353272051,1739733045965,-500.0,8.301e-05,2]
[353272052,1739733045974,-500.0,8.301e-05,2]
[353272053,1739733045983,-500.0,8.301e-05,2]
[353272054,1739733045993,-613.58,8.301e-05,2]
[353272055,1739733046005,-500.0,8.301e-05,2]
[353272056,1739733046014,-515.97,8.301e-05,2]
[353272057,1739733046024,-500.0,8.301e-05,2]
[353272058,1739733046037,-500.0,8.301e-05,2]
[353272059,1739733046047,-500.0,8.301e-05,2]
[353272060,1739733046058,-500.0,8.301e-05,2]
[353272061,1739733046068,-500.0,8.301e-05,2]
[353272062,1739733046078,-500.0,8.301e-05,2]
[353272063,1739733046088,-699.6,8.301e-05,2]
[353272064,1739733046103,-876.51,8.301e-05,2]
[353272065,1739733046119,-1483.37,8.301e-05,2]
[353272066,1739733046134,-24243.02,8.301e-05,2]
[353272067,1739733046146,-500.0,8.301e-05,2]
[353272068,1739733046159,-760.68,8.301e-05,2]
[353272069,1739733046173,-1122.57,8.301e-05,2]
[353272070,1739733046186,-2544.33,8.301e-05,2]
[353272071,1739733046201,-702.92,8.301e-05,2]
[353272072,1739733046214,-4575.58,8.301e-05,2]
[353272073,1739733046228,-579.63,8.301e-05,2]
[353272074,1739733046243,-657.42,8.301e-05,2]
[353272075,1739733046255,-500.0,8.301e-05,2]
[353272076,1739733046268,-500.0,8.301e-05,2]
[353272077,1739733046280,-500.0,8.301e-05,2]
[353272078,1739733046295,-500.0,8.301e-05,2]
[353272079,1739733046307,-2085.29,8.301e-05,2]
[353272080,1739733046320,-1091.36,8.301e-05,2]
[353272081,1739733046331,-591.81,8.301e-05,2]
[353272082,1739733046343,-500.0,8.301e-05,2]
[353272083,1739733046356,-729.94,8.301e-05,2]
[353272084,1739733046369,-500.0,8.301e-05,2]
[353272085,1739733046383,-500.0,8.301e-05,2]
[353272086,1739733046397,-1387.47,8.301e-05,2]
[353272087,1739733046412,-2021.25,8.301e-05,2]
[353272088,1739733046426,-500.0,8.301e-05,2]
[353272089,1739733046438,-500.0,8.301e-05,2]
[353272090,1739733046449,-659.34,8.301e-05,2]
[353272091,1739733046459,-1469.94,8.301e-05,2]
[353272092,1739733046472,-981.07,8.301e-05,2]
[353272093,1739733046487,-500.0,8.301e-05,2]
[353272094,1739733046502,-1248.94,8.301e-05,2]
[353272095,1739733046520,-500.0,8.301e-05,2]
[353272096,1739733046534,-311.76,8.301e-05,2]
[353272097,1739733046548,-500.0,8.301e-05,2]
[353272098,1739733046559,-11079.13,8.301e-05,2]
[353272099,1739733046572,-909.52,8.301e-05,2]
[353272100,1739733046583,-3038.02,8.301e-05,2]
[353272101,1739733046594,-1125.48,8.301e-05,2]
[353272102,1739733046605,-500.0,8.301e-05,2]
[353272103,1739733046616,-500.0,8.301e-05,2]
[353272104,1739733046629,-500.0,8.301e-05,2]
[353272105,1739733046640,-500.0,8.301e-05,2]
[353272106,1739733046652,-500.0,8.301e-05,2]
[353272107,1739733046664,-500.0,8.301e-05,2]
[353272108,1739733046677,-500.0,8.301e-05,2]
[353272109,1739733046689,-3918.87,8.301e-05,2]
[353272110,1739733046700,-2219.97,8.301e-05,2]
[353272111,1739733046712,-1247.21,8.301e-05,2]
[353272112,1739733046723,-500.0,8.301e-05,2]
[353272113,1739733046735,-2054.68,8.301e-05,2]
[353272114,1739733046747,-1640.14,8.301e-05,2]
[353272115,1739733046758,-500.0,8.301e-05,2]
[353272116,1739733046769,-10798.56,8.301e-05,2]
[353272117,1739733046781,-823.15,8.301e-05,2]
[353272118,1739733046793,-857.07,8.301e-05,2]
[353272119,1739733046805,-500.0,8.301e-05,2]
[353272120,1739733046816,-500.0,8.301e-05,2]
[353272121,1739733046829,-283.48868724,8.382e-05,2]
[353272122,1739733046841,-151.0,8.383e-05,2]
[353272123,1739733046853,-151.0,8.383e-05,2]
[353272124,1739733046865,-151.0,8.383e-05,2]
[353272125,1739733046878,-246.769568,8.383e-05,2]
[353272126,1739733046889,-500.0,8.383e-05,2]
[353272127,1739733046901,-500.0,8.383e-05,2]
[353272128,1739733046913,-500.0,8.383e-05,2]
[353272129,1739733046925,-500.0,8.383e-05,2]
[353272130,1739733046937,-500.0,8.383e-05,2]
[353272131,1739733046948,-500.0,8.383e-05,2]
[353272132,1739733046964,-500.0,8.383e-05,2]
[353272133,1739733046976,-1988.86,8.383e-05,2]
[353272134,1739733046988,-500.0,8.383e-05,2]
[353272135,1739733047000,-504.9,8.383e-05,2]
[353272136,1739733047012,-500.0,8.383e-05,2]
[353272137,1739733047025,-500.0,8.383e-05,2]
[353272138,1739733047038,-517.91,8.383e-05,2]
[353272139,1739733047050,-500.0,8.383e-05,2]
[353272140,1739733047062,-500.0,8.383e-05,2]
[353272141,1739733047075,-500.0,8.383e-05,2]
[353272142,1739733047088,-500.0,8.383e-05,2]
[353272143,1739733047103,-665.11,8.383e-05,2]
[353272144,1739733047115,-657.75,8.383e-05,2]
[353272145,1739733047128,-500.0,8.383e-05,2]
[353272146,1739733047140,-500.0,8.383e-05,2]
[353272147,1739733047153,-1060.72,8.383e-05,2]
[353272148,1739733047166,-500.0,8.383e-05,2]
[353272149,1739733047179,-500.0,8.383e-05,2]
[353272150,1739733047191,-500.0,8.383e-05,2]
[353272151,1739733047203,-613.58,8.383e-05,2]
[353272152,1739733047216,-500.0,8.383e-05,2]
[353272153,1739733047228,-515.97,8.383e-05,2]
[353272154,1739733047240,-500.0,8.383e-05,2]
[353272155,1739733047405,-500.0,8.383e-05,2]
[353272156,1739733047424,-500.0,8.383e-05,2]
[353272157,1739733047433,-500.0,8.383e-05,2]
[353272158,1739733047443,-500.0,8.383e-05,2]
[353272159,1739733047452,-160.58901203,8.383e-05,2]
[353272160,1739733047461,-179.67048632,8.383e-05,2]
[353272161,1739733047471,-150.05,8.383e-05,2]
[353272162,1739733047481,-500.0,8.383e-05,2]
[353272163,1739733047490,-150.05,8.383e-05,2]
[353272164,1739733047499,-500.0,8.383e-05,2]
[353272165,1739733047508,-699.6,8.383e-05,2]
[353272166,1739733047517,-876.51,8.383e-05,2]
[353272167,1739733047527,-1483.37,8.383e-05,2]
[353272168,1739733047536,-24243.02,8.383e-05,2]
[353272169,1739733047545,-500.0,8.383e-05,2]
[353272170,1739733047555,-760.68,8.383e-05,2]
[353272171,1739733047565,-1122.57,8.383e-05,2]
[353272172,1739733047574,-2544.33,8.383e-05,2]
[353272173,1739733047583,-702.92,8.383e-05,2]
[353272174,1739733047594,-4575.58,8.383e-05,2]
[353272175,1739733047605,-579.63,8.383e-05,2]
[353272176,1739733047615,-657.42,8.383e-05,2]
[353272177,1739733047624,-500.0,8.383e-05,2]
[353272178,1739733047634,-500.0,8.383e-05,2]
[353272179,1739733047644,-500.0,8.383e-05,2]
[353272180,1739733047653,-500.0,8.383e-05,2]
[353272181,1739733047665,-2085.29,8.383e-05,2]
[353272182,1739733047675,-1091.36,8.383e-05,2]
[353272183,1739733047684,-591.81,8.383e-05,2]
[353272184,1739733047695,-500.0,8.383e-05,2]
[353272185,1739733047704,-729.94,8.383e-05,2]
[353272186,1739733047714,-500.0,8.383e-05,2]
[353272187,1739733047724,-150.05,8.383e-05,2]
[353272188,1739733047733,-150.05,8.383e-05,2]
[353272189,1739733047743,-500.0,8.383e-05,2]
[353272190,1739733047754,-150.17,8.383e-05,2]
[353272191,1739733047764,-500.0,8.383e-05,2]
[353272192,1739733047774,-1387.47,8.383e-05,2]
[353272193,1739733047784,-944.0,8.383e-05,2]
[353272194,1739733047795,-2021.25,8.383e-05,2]
[353272195,1739733047804,-500.0,8.383e-05,2]
[353272196,1739733047814,-500.0,8.383e-05,2]
[353272197,1739733047823,-659.34,8.383e-05,2]
[353272198,1739733047833,-562.0,8.383e-05,2]
[353272199,1739733047843,-150.05,8.383e-05,2]
[353272200,1739733047852,-500.0,8.383e-05,2]
[353272201,1739733047862,-1469.94,8.383e-05,2]
[353272202,1739733047871,-981.07,8.383e-05,2]
[353272203,1739733047881,-500.0,8.383e-05,2]
[353272204,1739733047890,-1248.94,8.383e-05,2]
[353272205,1739733047901,-500.0,8.383e-05,2]
[353272206,1739733047910,-500.0,8.383e-05,2]
[353272207,1739733047920,-11079.13,8.383e-05,2]
[353272208,1739733047930,-909.52,8.383e-05,2]
[353272209,1739733047940,-3038.02,8.383e-05,2]
[353272210,1739733047950,-1125.48,8.383e-05,2]
[353272211,1739733047962,-500.0,8.383e-05,2]
[353272212,1739733047971,-500.0,8.383e-05,2]
[353272213,1739733047981,-500.0,8.383e-05,2]
[353272214,1739733047990,-500.0,8.383e-05,2]
[353272215,1739733048002,-500.0,8.383e-05,2]
[353272216,1739733048011,-500.0,8.383e-05,2]
[353272217,1739733048021,-500.0,8.383e-05,2]
[353272218,1739733048033,-3918.87,8.383e-05,2]
[353272219,1739733048043,-2219.97,8.383e-05,2]
[353272220,1739733048053,-1247.21,8.383e-05,2]
[353272221,1739733048063,-500.0,8.383e-05,2]
[353272222,1739733048074,-2054.68,8.383e-05,2]
[353272223,1739733048084,-1640.14,8.383e-05,2]
[353272224,1739733048095,-500.0,8.383e-05,2]
[353272225,1739733048106,-10798.56,8.383e-05,2]
[353272226,1739733048116,-823.15,8.383e-05,2]
[353272227,1739733048127,-857.07,8.383e-05,2]
[353272228,1739733048137,-500.0,8.383e-05,2]
[353272229,1739733048148,-500.0,8.383e-05,2]
[353272230,1739733048158,-187.505,8.439e-05,2]
[353272231,1739733048168,-150.0,8.439e-05,2]
[353272232,1739733048178,-154.519,8.439e-05,2]
[353272233,1739733048188,-1971.0,8.439e-05,2]
[353272234,1739733048198,-538.0,8.439e-05,2]
[353272235,1739733048207,-2291.0,8.439e-05,2]
[353272236,1739733048216,-276.361,8.439e-05,2]
[353272237,1739733048226,-410.417,8.439e-05,2]
[353272238,1739733048235,-151.0,8.439e-05,2]
[353272239,1739733048245,-3022.50961579,8.44e-05,2]
[353272240,1739733048255,-151.0,8.465e-05,2]
[353272241,1739733048265,-151.0,8.465e-05,2]
[353272242,1739733048275,-500.0,8.465e-05,2]
[353272243,1739733048285,-500.0,8.465e-05,2]
[353272244,1739733048295,-500.0,8.465e-05,2]
[353272245,1739733048306,-500.0,8.465e-05,2]
[353272246,1739733048315,-500.0,8.465e-05,2]
[353272247,1739733048326,-500.0,8.465e-05,2]
[353272248,1739733048336,-500.0,8.465e-05,2]
[353272249,1739733048346,-1988.86,8.465e-05,2]
[353272250,1739733048357,-500.0,8.465e-05,2]
[353272251,1739733048368,-504.9,8.465e-05,2]
[353272252,1739733048378,-500.0,8.465e-05,2]
[353272253,1739733048389,-500.0,8.465e-05,2]
[353272254,1739733048400,-517.91,8.465e-05,2]
[353272255,1739733048411,-234.67048638,8.465e-05,2]
[353272256,1739733048422,-500.0,8.465e-05,2]
[353272257,1739733048432,-500.0,8.465e-05,2]
[353272258,1739733048442,-500.0,8.465e-05,2]
[353272259,1739733048452,-665.11,8.465e-05,2]
[353272260,1739733048462,-657.75,8.465e-05,2]
[353272261,1739733048472,-500.0,8.465e-05,2]
[353272262,1739733048483,-500.0,8.465e-05,2]
[353272263,1739733048494,-1060.72,8.465e-05,2]
[353272264,1739733048505,-500.0,8.465e-05,2]
[353272265,1739733048514,-500.0,8.465e-05,2]
[353272266,1739733048525,-500.0,8.465e-05,2]
[353272267,1739733048535,-613.58,8.465e-05,2]
[353272268,1739733048545,-500.0,8.465e-05,2]
[353272269,1739733048555,-515.97,8.465e-05,2]
[353272270,1739733048566,-500.0,8.465e-05,2]
[353272271,1739733048576,-500.0,8.465e-05,2]
[353272272,1739733048586,-500.0,8.465e-05,2]
[353272273,1739733048595,-500.0,8.465e-05,2]
[353272274,1739733048604,-500.0,8.465e-05,2]
[353272275,1739733048613,-500.0,8.465e-05,2]
[353272276,1739733048623,-699.6,8.465e-05,2]
[353272277,1739733048632,-876.51,8.465e-05,2]
[353272278,1739733048641,-1483.37,8.465e-05,2]
[353272279,1739733048651,-24243.02,8.465e-05,2]
[353272280,1739733048662,-500.0,8.465e-05,2]
[353272281,1739733048672,-760.68,8.465e-05,2]
[353272282,1739733048682,-1122.57,8.465e-05,2]
[353272283,1739733048692,-2544.33,8.465e-05,2]
[353272284,1739733048702,-702.92,8.465e-05,2]
[353272285,1739733048712,-4575.58,8.465e-05,2]
[353272286,1739733048722,-579.63,8.465e-05,2]
[353272287,1739733048732,-657.42,8.465e-05,2]
[353272288,1739733048746,-500.0,8.465e-05,2]
[353272289,1739733048756,-500.0,8.465e-05,2]
[353272290,1739733048766,-500.0,8.465e-05,2]
[353272291,1739733048776,-500.0,8.465e-05,2]
[353272292,1739733048786,-2085.29,8.465e-05,2]
[353272293,1739733048796,-1091.36,8.465e-05,2]
[353272294,1739733048806,-591.81,8.465e-05,2]
[353272295,1739733048816,-500.0,8.465e-05,2]
[353272296,1739733048826,-729.94,8.465e-05,2]
[353272297,1739733048837,-500.0,8.465e-05,2]
[353272298,1739733048847,-500.0,8.465e-05,2]
[353272299,1739733048857,-1387.47,8.465e-05,2]
[353272300,1739733048867,-2021.25,8.465e-05,2]
[353272301,1739733048878,-500.0,8.465e-05,2]
[353272302,1739733048889,-500.0,8.465e-05,2]
[353272303,1739733048899,-659.34,8.465e-05,2]
[353272304,1739733048910,-1469.94,8.465e-05,2]
[353272305,1739733048921,-981.07,8.465e-05,2]
[353272306,1739733048931,-500.0,8.465e-05,2]
[353272307,1739733048940,-1248.94,8.465e-05,2]
[353272308,1739733048951,-285.09,8.465e-05,2]
[353272309,1739733048965,-500.0,8.465e-05,2]
[353272310,1739733048975,-11079.13,8.465e-05,2]
[353272311,1739733048986,-909.52,8.465e-05,2]
[353272312,1739733048996,-3038.02,8.465e-05,2]
[353272313,1739733049007,-1125.48,8.465e-05,2]
[353272314,1739733049017,-500.0,8.465e-05,2]
[353272315,1739733049027,-500.0,8.465e-05,2]
[353272316,1739733049036,-500.0,8.465e-05,2]
[353272317,1739733049046,-500.0,8.465e-05,2]
[353272318,1739733049056,-500.0,8.465e-05,2]
[353272319,1739733049066,-500.0,8.465e-05,2]
[353272320,1739733049076,-500.0,8.465e-05,2]
[353272321,1739733049086,-3918.87,8.465e-05,2]
[353272322,1739733049096,-2219.97,8.465e-05,2]
[353272323,1739733049106,-1247.21,8.465e-05,2]
[353272324,1739733049115,-500.0,8.465e-05,2]
[353272325,1739733049126,-2054.68,8.465e-05,2]
[353272326,1739733049137,-1640.14,8.465e-05,2]
[353272327,1739733049147,-500.0,8.465e-05,2]
[353272328,1739733049156,-10798.56,8.465e-05,2]
[353272329,1739733049166,-823.15,8.465e-05,2]
[353272330,1739733049177,-857.07,8.465e-05,2]
[353272331,1739733049188,-500.0,8.465e-05,2]
[353272332,1739733049198,-500.0,8.465e-05,2]
[353272333,1739733049207,-155.0204527,8.47e-05,2]
[353272334,1739733049217,-153.0,8.521e-05,2]
[353272335,1739733049227,-431.7599296,8.521e-05,2]
[353272336,1739733049237,-154.6992002,8.521e-05,2]
[353272337,1739733049248,-431.7834183,8.521e-05,2]
[353272338,1739733049257,-154.666516,8.521e-05,2]
[353272339,1739733049267,-151.0,8.547e-05,2]
[353272340,1739733049277,-250.21072,8.547e-05,2]
[353272341,1739733049287,-500.0,8.547e-05,2]
[353272342,1739733049298,-500.0,8.547e-05,2]
[353272343,1739733049307,-500.0,8.547e-05,2]
[353272344,1739733049317,-500.0,8.547e-05,2]
[353272345,1739733049327,-500.0,8.547e-05,2]
[353272346,1739733049337,-500.0,8.547e-05,2]
[353272347,1739733049346,-500.0,8.547e-05,2]
[353272348,1739733049358,-1988.86,8.547e-05,2]
[353272349,1739733049367,-500.0,8.547e-05,2]
[353272350,1739733049377,-504.9,8.547e-05,2]
[353272351,1739733049387,-500.0,8.547e-05,2]
[353272352,1739733049397,-500.0,8.547e-05,2]
[353272353,1739733049406,-517.91,8.547e-05,2]
[353272354,1739733049416,-500.0,8.547e-05,2]
[353272355,1739733049425,-500.0,8.547e-05,2]
[353272356,1739733049435,-500.0,8.547e-05,2]
[353272357,1739733049444,-665.11,8.547e-05,2]
[353272358,1739733049453,-657.75,8.547e-05,2]
[353272359,1739733049462,-500.0,8.547e-05,2]
[353272360,1739733049471,-500.0,8.547e-05,2]
[353272361,1739733049481,-1060.72,8.547e-05,2]
[353272362,1739733049491,-500.0,8.547e-05,2]
[353272363,1739733049501,-500.0,8.547e-05,2]
[353272364,1739733049511,-500.0,8.547e-05,2]
[353272365,1739733049521,-613.58,8.547e-05,2]
[353272366,1739733049531,-500.0,8.547e-05,2]
[353272367,1739733049541,-515.97,8.547e-05,2]
[353272368,1739733049550,-500.0,8.547e-05,2]
[353272369,1739733049559,-500.0,8.547e-05,2]
[353272370,1739733049569,-500.0,8.547e-05,2]
[353272371,1739733049579,-500.0,8.547e-05,2]
[353272372,1739733049588,-500.0,8.547e-05,2]
[353272373,1739733049599,-500.0,8.547e-05,2]
[353272374,1739733049609,-699.6,8.547e-05,2]
[353272375,1739733049619,-876.51,8.547e-05,2]
[353272376,1739733049628,-1483.37,8.547e-05,2]
[353272377,1739733049638,-24243.02,8.547e-05,2]
[353272378,1739733049648,-500.0,8.547e-05,2]
[353272379,1739733049657,-760.68,8.547e-05,2]
[353272380,1739733049667,-1122.57,8.547e-05,2]
[353272381,1739733049676,-2544.33,8.547e-05,2]
[353272382,1739733049686,-702.92,8.547e-05,2]
[353272383,1739733049695,-4575.58,8.547e-05,2]
[353272384,1739733049705,-579.63,8.547e-05,2]
[353272385,1739733049715,-657.42,8.547e-05,2]
[353272386,1739733049724,-500.0,8.547e-05,2]
[353272387,1739733049733,-500.0,8.547e-05,2]
[353272388,1739733049743,-500.0,8.547e-05,2]
[353272389,1739733049752,-500.0,8.547e-05,2]
[353272390,1739733049762,-2085.29,8.547e-05,2]
[353272391,1739733049771,-1091.36,8.547e-05,2]
[353272392,1739733049780,-591.81,8.547e-05,2]
[353272393,1739733049790,-500.0,8.547e-05,2]
[353272394,1739733049905,-729.94,8.547e-05,2]
[353272395,1739733049914,-500.0,8.547e-05,2]
[353272396,1739733049923,-500.0,8.547e-05,2]
[353272397,1739733049933,-1387.47,8.547e-05,2]
[353272398,1739733049942,-2021.25,8.547e-05,2]
[353272399,1739733049952,-500.0,8.547e-05,2]
[353272400,1739733049964,-500.0,8.547e-05,2]
[353272401,1739733049973,-659.34,8.547e-05,2]
[353272402,1739733049982,-1469.94,8.547e-05,2]
[353272403,1739733049991,-981.07,8.547e-05,2]
[353272404,1739733050002,-500.0,8.547e-05,2]
[353272405,1739733050011,-1248.94,8.547e-05,2]
[353272406,1739733050020,-500.0,8.547e-05,2]
[353272407,1739733050031,-11079.13,8.547e-05,2]